[Event "FIDE WCCC Open-10 2024"]
[Site "Montesilvano"]
[Date "2024.11.22"]
[Round "7.12"]
[White "Ilko-Toth, Andras"]
[Black "Melkonyan, Davit"]
[Result "1-0"]
[Annotator "RC"]
[ECO "D11"]
[WhiteElo "2115"]
[BlackElo "1842"]
[PlyCount "119"]
[EventDate "2024.11.18"]
[EventType "swiss"]
[EventCountry "ITA"]
[SourceTitle "playchess.com"]
[Source "ChessBase"]
[SourceQuality "1"]
[TimeControl "5400+30"]

1. d4 {[%emt 0:00:00]} d5 {[%emt 0:01:04]} 2. Nf3 {[%emt 0:00:01]} Nf6 {[%emt 0:01:26]} 3. g3 {[%emt 0:00:01]} Bf5 {[%emt 0:00:58]} 4. Bg2 {[%emt 0:00:01]} e6 {[%emt 0:04:36]} 5. c4 {[%emt 0:00:48]} Be7 {[%emt 1:24:56]} 6. Nc3 {[%emt 0:02:39]} h6 {[%emt 0:00:00]} 7. O-O {[%emt 0:00:30]} c6 {[%emt 0:00:00]} 8. Nd2 {[%emt 0:00:30]} O-O {[%emt 0:00:00]} 9. e4 {[%emt 0:00:01]} dxe4 {[%emt 0:00:00]} 10. Ndxe4 {[%emt 0:00:18]} Nbd7 {[%emt 0:00:00]} 11. Be3 {[%emt 1:31:11]} Nxe4 {[%emt 0:00:00]} 12. Nxe4 {[%emt 0:00:00]} Nf6 {[%emt 0:00:00]} 13. Nc3 {[%emt 0:00:00]} Qd7 {[%emt 0:00:00]} 14. h3 {[%emt 0:00:00]} Rfd8 {[%emt 0:00:00]} 15. Qe2 {[%emt 0:00:00]} Bd6 {[%emt 0:00:00]} 16. Rfd1 {[%emt 0:00:00]} Qe7 {[%emt 0:00:00]} 17. Rac1 {[%emt 0:00:00]} Rac8 {[%emt 0:00:00]} 18. a3 {[%emt 0:00:00]} a5 {[%emt 0:00:00]} 19. Rd2 {[%emt 0:00:00]} Bc7 {[%emt 0:00:00]} 20. Re1 {[%emt 0:00:00]} Bg6 {[%emt 0:00:00]} 21. Qd1 {[%emt 0:00:00]} Re8 {[%emt 0:00:00]} 22. Qb3 {[%emt 0:00:00]} Bb8 {[%emt 0:00:00]} 23. Qb6 {[%emt 0:00:00]} Qc7 {[%emt 0:00:00]} 24. Qb3 {[%emt 0:00:00]} Qe7 {[%emt 0:00:00]} 25. Qb6 {[%emt 0:00:00]} Qc7 {[%emt 0:00:00]} 26. Qxc7 {[%emt 0:00:00]} Bxc7 {[%emt 0:00:05]} 27. d5 {[%emt 0:00:00]} exd5 {[%emt 0:00:38]} 28. cxd5 {[%emt 0:00:00]} cxd5 {[%emt 0:00:33]} 29. Nxd5 {[%emt 0:00:00]} Nxd5 {[%emt 0:00:28]} 30. Bxd5 {[%emt 0:00:00]} Be5 {[%emt 0:02:30]} 31. Bb6 {[%emt 0:00:00]} Bf6 {[%emt 0:02:22]} 32. Rxe8+ {[%emt 0:00:00]} Rxe8 {[%emt 0:00:01]} 33. Bxa5 {[%emt 0:00:00]} Re1+ {[%emt 0:00:11]} 34. Kh2 {[%emt 0:00:00]} b5 {[%emt 0:00:50]} 35. Bb4 {[%emt 0:01:53]} h5 {[%emt 0:01:23]} 36. h4 {[%emt 0:01:54]} Bf5 {[%emt 0:00:43]} 37. Bf3 {[%emt 0:00:16]} g6 {[%emt 0:01:44]} 38. Rd8+ {[%emt 0:00:31]} Bxd8 {[%emt 0:00:07]} 39. Bxe1 {[%emt 0:00:04]} Bd3 {[%emt 0:00:09]} 40. Bb4 {[%emt 0:01:05]} Bf1 {[%emt 0:00:38]} 41. Kg1 {[%emt 0:00:44]} Bc4 {[%emt 0:00:07]} 42. Bc6 {[%emt 0:00:09]} f6 {[%emt 0:00:40]} 43. b3 {[%emt 0:00:58]} Bxb3 {[%emt 0:00:05]} 44. Bxb5 {[%emt 0:00:08]} Bd5 {[%emt 0:00:08]} 45. a4 {[%emt 0:00:48]} Kf7 {[%emt 0:00:09]} 46. a5 {[%emt 0:00:08]} g5 {[%emt 0:00:54]} 47. a6 {[%emt 0:01:39]} Bb6 {[%emt 0:00:23]} 48. Bd6 {[%emt 0:01:05]} Ba7 {[%emt 0:00:28]} 49. Bc7 {[%emt 0:01:07]} gxh4 {[%emt 0:00:16]} 50. gxh4 {[%emt 0:00:16]} Ke6 {[%emt 0:00:22]} 51. Bf4 {[%emt 0:01:17]} Kf5 {[%emt 0:02:07]} 52. Be3 {[%emt 0:00:05]} Bb8 {[%emt 0:00:08]} 53. a7 {[%emt 0:00:06]} Bxa7 {[%emt 0:00:10]} 54. Bd7+ {[%emt 0:00:30]} Ke5 {[%emt 0:00:35]} 55. Bxa7 {[%emt 0:00:07]} f5 {[%emt 0:00:09]} 56. Be8 {[%emt 0:00:19]} Bf3 {[%emt 0:00:06]} 57. Bb8+ {[%emt 0:00:07]} Kd4 {[%emt 0:00:23]} 58. Kh2 {[%emt 0:00:14]} Kd5 {[%emt 0:00:22]} 59. Kg3 {[%emt 0:00:11]} Bd1 {[%emt 0:00:10]} 60. f3 {[%emt 0:00:08]} 1-0

[Event "FIDE WCCC Open-10 2024"]
[Site "Montesilvano"]
[Date "2024.11.22"]
[Round "7.12"]
[White "Hung, I-Hsuan"]
[Black "Zilincan, Tomas"]
[Result "1-0"]
[Annotator "NA RC"]
[ECO "C11"]
[WhiteElo "1608"]
[BlackElo "1778"]
[PlyCount "65"]
[EventDate "2024.11.18"]
[EventType "swiss"]
[EventCountry "ITA"]
[SourceTitle "playchess.com"]
[Source "ChessBase"]
[SourceQuality "1"]
[TimeControl "5400+30"]

1. e4 {[%emt 0:00:02]} e6 {[%emt 0:00:06]} 2. d4 {[%emt 0:00:07]} d5 {[%emt 0:00:06]} 3. Nc3 {[%emt 0:00:10]} Nf6 {[%emt 0:00:05]} 4. e5 {[%emt 0:00:14]} Nfd7 {[%emt 0:00:06]} 5. Qg4 {[%emt 0:00:32]} c5 {[%emt 0:00:19]} 6. Nb5 {[%emt 0:00:36]} a6 {[%emt 0:00:17]} 7. Nd6+ {[%emt 0:00:40]} Bxd6 {[%emt 0:00:16]} 8. Qxg7 {[%emt 0:02:56]} Rf8 {[%emt 0:00:38]} 9. exd6 {[%emt 0:00:30]} Qb6 {[%emt 0:00:17]} 10. Qxh7 {[%emt 0:06:24]} Qxd6 {[%emt 0:01:11]} 11. Bh6 {[%emt 0:01:50]} Nf6 {[%emt 0:00:11]} 12. Bxf8 {[%emt 0:00:50]} Qxf8 {[%emt 0:00:45]} 13. Qh4 {[%emt 0:04:05]} Nbd7 {[%emt 0:01:03]} 14. dxc5 {[%emt 0:02:39]} Qxc5 {[%emt 0:00:15]} 15. Bd3 {[%emt 0:00:26]} d4 {[%emt 0:01:58]} 16. a3 {[%emt 0:08:07]} Qa5+ {[%emt 0:00:29]} 17. b4 {[%emt 0:02:31]} Qc7 {[%emt 0:01:02]} 18. Ne2 {[%emt 0:02:24]} b5 {[%emt 0:02:29]} 19. Qxd4 {[%emt 0:05:40]} Bb7 {[%emt 0:00:42]} 20. O-O {[%emt 0:01:21]} Qc6 {[%emt 0:00:32]} 21. f3 {[%emt 0:00:19]} Ke7 {[%emt 0:02:13]} 22. Ng3 {[%emt 0:01:44]} Rh8 {[%emt 0:06:34]} 23. Rae1 {[%emt 0:02:34]} Qc7 {[%emt 0:00:42]} 24. Nf5+ {[%emt 0:02:59]} Kd8 {[%emt 0:00:18]} 25. Nd6 {[%emt 0:00:42]} Ke7 {[%emt 0:05:17]} 26. Nxb7 {[%emt 0:01:26]} Qxb7 {[%emt 0:01:22]} 27. Bf5 {[%emt 0:03:28]} Qc7 {[%emt 0:00:41]} 28. Bh3 {[%emt 0:01:10]} Qxc2 {[%emt 0:00:17]} 29. Rc1 {[%emt 0:00:31]} Qg6 {[%emt 0:00:18]} 30. Kh1 {[%emt 0:01:08]} Rh5 {[%emt 0:04:22]} 31. Rfd1 {[%emt 0:02:05]} Nd5 {[%emt 0:00:56]} 32. Rc7 {[%emt 0:03:31]} Qh7 {[%emt 0:02:29]} 33. Qc5+ {[%emt 0:00:46]} 1-0

[Event "FIDE WCCC Open-10 2024"]
[Site "Montesilvano"]
[Date "2024.11.22"]
[Round "7.13"]
[White "Filipovs, Sergejs"]
[Black "Nguyen Truong An Khang"]
[Result "1-0"]
[Annotator "NA RC"]
[ECO "C45"]
[WhiteElo "2012"]
[BlackElo "1836"]
[PlyCount "115"]
[EventDate "2024.11.18"]
[EventType "swiss"]
[EventCountry "ITA"]
[SourceTitle "playchess.com"]
[Source "ChessBase"]
[SourceQuality "1"]
[TimeControl "5400+30"]

1. e4 {[%emt 0:00:02]} e5 {[%emt 0:00:01]} 2. Nf3 {[%emt 0:00:06]} Nc6 {[%emt 0:00:03]} 3. d4 {[%emt 0:00:06]} exd4 {[%emt 0:00:08]} 4. Nxd4 {[%emt 0:00:04]} Nf6 {[%emt 0:00:10]} 5. Nxc6 {[%emt 0:00:09]} bxc6 {[%emt 0:00:04]} 6. Bd3 {[%emt 0:00:05]} d5 {[%emt 0:00:06]} 7. e5 {[%emt 0:00:08]} Ng4 {[%emt 0:00:06]} 8. O-O {[%emt 0:00:07]} Bc5 {[%emt 0:00:02]} 9. Qe2 {[%emt 0:00:08]} Qe7 {[%emt 0:00:06]} 10. Bf4 {[%emt 0:00:08]} g5 {[%emt 0:00:14] C45: Scotch Game.} 11. Bd2 {[%emt 0:00:07]} Nxe5 {[%emt 0:10:32]} 12. Re1 {[%emt 0:00:07]} f6 {[%emt 0:00:14]} 13. Bxg5 {[%emt 0:01:54]} Bg4 {[%emt 0:01:55]} 14. Bxf6 {[%emt 0:01:31]} Bxe2 {[%emt 0:02:39]} 15. Bxe7 {[%emt 0:00:03]} Nxd3 {[%emt 0:02:48]} 16. cxd3 {[%emt 0:02:07]} Kxe7 {[%emt 0:00:40]} 17. Rxe2+ {[%emt 0:00:05]} Kd7 {[%emt 0:02:32]} 18. Nd2 {[%emt 0:00:16]} Rhf8 {[%emt 0:11:05]} 19. Nf3 {[%emt 0:01:02]} Rf4 {[%emt 0:07:34]} 20. Rc1 {[%emt 0:03:59]} Bd6 {[%emt 0:02:24]} 21. d4 {[%emt 0:01:22]} Rb8 {[%emt 0:00:43]} 22. b3 $16 {[%emt 0:04:16]} Rb4 {[%emt 0:06:46]} 23. Rec2 {[%emt 0:01:02]} Rb6 {[%emt 0:00:25]} 24. Rc3 {[%emt 0:00:25]} Re4 {[%emt 0:04:29]} 25. Kf1 {[%emt 0:01:51]} a5 {[%emt 0:04:26]} 26. Re1 {[%emt 0:02:51]} a4 {[%emt 0:11:13]} 27. Rxe4 {[%emt 0:02:10]} dxe4 {[%emt 0:01:30]} 28. Ng5 {[%emt 0:01:55]} Rb4 {[%emt 0:09:27]} 29. Rc4 {[%emt 0:00:48]} axb3 {[%emt 0:00:18]} 30. Rxb4 {[%emt 0:00:13]} Bxb4 {[%emt 0:01:28]} 31. axb3 {[%emt 0:00:04]} Bc3 {[%emt 0:00:10]} 32. Nxh7 {[%emt 0:01:51]} Bxd4 {[%emt 0:00:50]} 33. Ng5 {[%emt 0:00:12]} e3 {[%emt 0:00:19]} 34. f4 {[%emt 0:00:28]} Ke7 {[%emt 0:04:45]} 35. Nf3 {[%emt 0:00:11]} c5 {[%emt 0:03:45]} 36. Ke2 {[%emt 0:00:29]} Kf6 {[%emt 0:00:08]} 37. g4 {[%emt 0:00:07]} Kg6 {[%emt 0:00:23]} 38. Nh4+ {[%emt 0:00:33]} Kf6 {[%emt 0:00:31]} 39. Nf5 {[%emt 0:00:12]} Kg6 {[%emt 0:00:13]} 40. Nxe3 {[%emt 0:00:05]} c6 {[%emt 0:00:19]} 41. Kf3 {[%emt 0:00:11]} Bf6 {[%emt 0:00:06]} 42. Ke4 {[%emt 0:00:16]} Bd4 {[%emt 0:00:38]} 43. Nf5 {[%emt 0:00:07]} Bf6 {[%emt 0:00:09]} 44. h4 {[%emt 0:00:05]} Bd8 {[%emt 0:00:17]} 45. h5+ {[%emt 0:00:07]} Kh7 {[%emt 0:00:09]} 46. Ke5 {[%emt 0:00:10]} c4 {[%emt 0:00:03]} 47. bxc4 {[%emt 0:00:06]} c5 {[%emt 0:00:06]} 48. g5 {[%emt 0:00:06]} Bc7+ {[%emt 0:00:11]} 49. Nd6 {[%emt 0:00:10]} Bd8 {[%emt 0:00:04]} 50. Ke6 {[%emt 0:00:16]} Kg7 {[%emt 0:00:08]} 51. Nf7 {[%emt 0:00:14]} Ba5 {[%emt 0:00:13]} 52. f5 {[%emt 0:00:06]} Bc3 {[%emt 0:00:03]} 53. h6+ {[%emt 0:00:07]} Kh7 {[%emt 0:00:10]} 54. g6+ {[%emt 0:00:05]} Kg8 {[%emt 0:00:01]} 55. h7+ {[%emt 0:00:11]} Kf8 {[%emt 0:00:08]} 56. f6 {[%emt 0:00:05]} Bxf6 {[%emt 0:00:08]} 57. Kxf6 {[%emt 0:00:04]} Ke8 {[%emt 0:00:06]} 58. Ke6 {[%emt 1:23:45]} 1-0

[Event "FIDE WCCC Open-10 2024"]
[Site "Montesilvano"]
[Date "2024.11.22"]
[Round "7.13"]
[White "Zhou, Martin"]
[Black "Osmolovskii, Nikita"]
[Result "1-0"]
[Annotator "NA RC"]
[ECO "B07"]
[WhiteElo "1776"]
[BlackElo "1468"]
[PlyCount "67"]
[EventDate "2024.11.18"]
[EventType "swiss"]
[EventCountry "ITA"]
[SourceTitle "playchess.com"]
[Source "ChessBase"]
[SourceQuality "1"]
[TimeControl "5400+30"]

1. e4 {[%emt 0:00:02]} d6 {[%emt 0:00:06]} 2. d4 {[%emt 0:00:11]} g6 {[%emt 0:00:05]} 3. Be3 {[%emt 0:00:33]} Nf6 {[%emt 0:00:06]} 4. Nc3 {[%emt 0:00:29]} Bg7 {[%emt 0:00:08]} 5. f3 {[%emt 0:02:26]} O-O {[%emt 0:01:49]} 6. Qd2 {[%emt 0:00:03]} c6 {[%emt 0:00:19]} 7. O-O-O {[%emt 0:03:03]} b5 {[%emt 0:03:58]} 8. Bh6 {[%emt 0:03:50]} Nbd7 {[%emt 0:01:22]} 9. h4 {[%emt 0:00:09]} Nb6 {[%emt 0:02:44]} 10. h5 {[%emt 0:02:23]} Nc4 {[%emt 0:05:32]} 11. Bxc4 {[%emt 0:00:11]} bxc4 {[%emt 0:00:04]} 12. hxg6 {[%emt 0:00:19]} fxg6 {[%emt 0:00:09]} 13. Bxg7 {[%emt 0:00:06]} Kxg7 {[%emt 0:00:08]} 14. Qh6+ {[%emt 0:00:12]} Kf7 {[%emt 0:00:34]} 15. e5 {[%emt 0:11:10]} Rh8 {[%emt 0:06:50]} 16. exf6 {[%emt 0:00:40]} exf6 {[%emt 0:06:15]} 17. d5 {[%emt 0:01:48]} c5 {[%emt 0:06:57]} 18. Ne4 {[%emt 0:04:37]} Qe7 {[%emt 0:09:17]} 19. Qf4 {[%emt 0:00:49]} g5 {[%emt 0:09:48]} 20. Nxg5+ {[%emt 0:00:15]} Kg7 {[%emt 0:05:03]} 21. Ne4 {[%emt 0:04:14]} Qe5 {[%emt 0:07:27]} 22. Qh6+ {[%emt 0:01:16]} Kf7 {[%emt 0:04:05]} 23. Ne2 {[%emt 0:02:37]} Bf5 {[%emt 0:01:02]} 24. Rh5 {[%emt 0:00:49]} Rae8 {[%emt 0:12:53]} 25. Rxf5 {[%emt 0:00:12]} Qe7 {[%emt 0:01:15]} 26. Rxf6+ {[%emt 0:01:01]} Kg8 {[%emt 0:08:08]} 27. Re6 {[%emt 0:00:09]} Qf7 {[%emt 0:00:20]} 28. Nf6+ {[%emt 0:00:05]} Qxf6 {[%emt 0:00:41]} 29. Qxf6 {[%emt 0:00:05]} Rxe6 {[%emt 0:07:55]} 30. dxe6 {[%emt 0:00:04]} c3 {[%emt 0:00:00]} 31. e7 {[%emt 0:00:07]} cxb2+ {[%emt 0:00:00]} 32. Kxb2 {[%emt 0:00:07]} h5 {[%emt 0:00:00]} 33. e8=Q+ {[%emt 0:00:06]} Kh7 {[%emt 0:00:00]} 34. Qexh8# {[%emt 0:00:05]} 1-0

[Event "FIDE WCCC Open-10 2024"]
[Site "Montesilvano"]
[Date "2024.11.22"]
[Round "7.14"]
[White "Chen, Chicheng Leon"]
[Black "Buklaho, Ignacy"]
[Result "1/2-1/2"]
[Annotator "NA RC"]
[ECO "B12"]
[WhiteElo "1987"]
[BlackElo "1822"]
[PlyCount "82"]
[EventDate "2024.11.18"]
[EventType "swiss"]
[EventCountry "ITA"]
[SourceTitle "playchess.com"]
[Source "ChessBase"]
[SourceQuality "1"]
[TimeControl "5400+30"]

1. e4 {[%emt 0:00:02]} c6 {[%emt 0:00:11]} 2. d4 {[%emt 0:00:07]} d5 {[%emt 0:00:05]} 3. e5 {[%emt 0:00:08]} Bf5 {[%emt 0:00:06]} 4. h4 {[%emt 0:00:15]} h5 {[%emt 0:00:07]} 5. Bd3 {[%emt 0:00:18]} Bxd3 {[%emt 0:00:08]} 6. Qxd3 {[%emt 0:00:06]} Qa5+ {[%emt 0:00:08]} 7. Nd2 {[%emt 0:00:12]} e6 {[%emt 0:00:35]} 8. Ngf3 {[%emt 0:00:13]} Ne7 {[%emt 0:00:12]} 9. O-O {[%emt 0:00:14]} Nf5 {[%emt 0:00:06]} 10. Nb3 {[%emt 0:00:24]} Qa6 {[%emt 0:00:12]} 11. Qd1 {[%emt 0:00:05]} b6 {[%emt 0:00:10]} 12. Bg5 {[%emt 0:00:15]} c5 {[%emt 0:01:37]} 13. dxc5 {[%emt 0:00:05]} bxc5 {[%emt 0:04:52]} 14. Nbd2 {[%emt 0:00:05]} Be7 {[%emt 0:10:17]} 15. Bxe7 {[%emt 0:03:46]} Nxe7 {[%emt 0:00:09]} 16. c4 {[%emt 0:02:14]} Nd7 {[%emt 0:15:13]} 17. Re1 {[%emt 0:03:06]} O-O $16 {[%emt 0:07:45]} 18. cxd5 {[%emt 0:10:54]} Nxd5 {[%emt 0:00:41]} 19. Ne4 {[%emt 0:04:31]} g6 {[%emt 0:03:53]} 20. Qc1 {[%emt 0:15:05]} Kg7 {[%emt 0:04:35]} 21. Qg5 {[%emt 0:14:24]} Qb6 {[%emt 0:04:46]} 22. b3 {[%emt 0:05:01]} Qd8 {[%emt 0:05:02]} 23. Qg3 {[%emt 0:06:53]} Qe7 {[%emt 0:03:51]} 24. Nd6 {[%emt 0:02:34]} Rad8 {[%emt 0:04:08]} 25. Nd2 {[%emt 0:05:41]} Nb4 {[%emt 0:14:13]} 26. Rac1 {[%emt 0:10:16]} Kg8 {[%emt 0:05:43]} 27. N2c4 {[%emt 0:02:54]} Nb6 {[%emt 0:01:48]} 28. a3 {[%emt 0:03:07]} Nc6 {[%emt 0:01:55]} 29. b4 {[%emt 0:05:18]} Nxc4 {[%emt 0:03:04]} 30. Rxc4 {[%emt 0:00:06]} Nxe5 {[%emt 0:02:03]} 31. Qxe5 {[%emt 0:00:26]} Qxd6 {[%emt 0:00:18]} 32. Qxd6 {[%emt 0:00:21]} Rxd6 {[%emt 0:00:14]} 33. Rxc5 {[%emt 0:00:06]} Ra6 {[%emt 0:00:27]} 34. Ra1 {[%emt 0:01:47]} Rb8 {[%emt 0:00:29]} 35. Rcc1 {[%emt 0:01:21]} Ra4 {[%emt 0:00:25]} 36. g3 {[%emt 0:00:18]} Kg7 {[%emt 0:00:49]} 37. Kg2 {[%emt 0:00:22]} a5 {[%emt 0:01:26]} 38. bxa5 {[%emt 0:00:09]} Rxa5 {[%emt 0:00:23]} 39. Rc3 {[%emt 0:00:21]} Ra4 {[%emt 0:01:12]} 40. Kf3 {[%emt 0:00:22]} Rb5 {[%emt 0:00:34]} 41. Re3 {[%emt 0:00:41]} Kf6 {[%emt 0:00:46]} 1/2-1/2

[Event "FIDE WCCC Open-10 2024"]
[Site "Montesilvano"]
[Date "2024.11.22"]
[Round "7.14"]
[White "Prokhorov, Makar"]
[Black "Radiukevich, Viacheslau"]
[Result "*"]
[Annotator "NA RC"]
[ECO "C88"]
[WhiteElo "1771"]
[BlackElo "1484"]
[PlyCount "21"]
[EventDate "2024.11.18"]
[EventType "swiss"]
[EventCountry "ITA"]
[SourceTitle "playchess.com"]
[Source "ChessBase"]
[SourceQuality "1"]
[TimeControl "5400+30"]

1. e4 {[%emt 0:00:01]} e5 {[%emt 0:00:08]} 2. Nf3 {[%emt 0:00:10]} Nc6 {[%emt 0:00:09]} 3. Bb5 {[%emt 0:00:08]} a6 {[%emt 0:00:06]} 4. Ba4 {[%emt 0:00:07]} Nf6 {[%emt 0:00:11]} 5. O-O {[%emt 0:00:31]} b5 {[%emt 0:00:03]} 6. Bb3 {[%emt 0:00:20]} Be7 {[%emt 0:00:07]} 7. Re1 {[%emt 0:00:19]} O-O {[%emt 0:00:09]} 8. a4 {[%emt 0:00:22]} Bb7 {[%emt 0:00:33]} 9. d3 {[%emt 0:00:19]} d6 {[%emt 0:00:52]} 10. Nbd2 {[%emt 0:00:39]} g6 {[%emt 0:01:13]} 11. Ba2 {[%emt 0:00:33]} *

[Event "FIDE WCCC Open-10 2024"]
[Site "Montesilvano"]
[Date "2024.11.22"]
[Round "7.14"]
[White "Prokhorov, Makar"]
[Black "Radiukevich, Viacheslau"]
[Result "0-1"]
[Annotator "NA RC"]
[ECO "C88"]
[WhiteElo "1771"]
[BlackElo "1484"]
[PlyCount "114"]
[EventDate "2024.11.18"]
[EventType "swiss"]
[EventCountry "ITA"]
[SourceTitle "playchess.com"]
[Source "ChessBase"]
[SourceQuality "1"]
[TimeControl "5400+30"]

1. e4 {[%emt 0:00:01]} e5 {[%emt 0:00:08]} 2. Nf3 {[%emt 0:00:30]} Nc6 3. Bb5 {[%emt 0:00:30]} a6 {[%emt 0:01:00]} 4. Ba4 {[%emt 0:00:30]} Nf6 {[%emt 0:00:30]} 5. O-O {[%emt 0:00:30]} b5 {[%emt 0:00:30]} 6. Bb3 {[%emt 0:00:30]} Be7 {[%emt 0:00:30]} 7. Re1 {[%emt 0:00:30]} O-O {[%emt 0:00:30]} 8. a4 {[%emt 0:00:30]} Bb7 {[%emt 0:00:30]} 9. d3 {[%emt 0:00:30]} d6 {[%emt 0:00:30]} 10. Nbd2 {[%emt 0:00:30]} Na5 {[%emt 0:00:30]} 11. Ba2 {[%emt 0:00:30]} c5 {[%emt 0:00:30]} 12. Nf1 {[%emt 0:00:30]} Nc6 {[%emt 0:00:30]} 13. Ng3 {[%emt 0:00:30]} Rb8 {[%emt 0:00:30]} 14. Bg5 {[%emt 0:00:30]} Bc8 {[%emt 0:00:30]} 15. Bxf6 {[%emt 0:00:30]} Bxf6 {[%emt 0:00:30]} 16. c3 {[%emt 0:00:30]} Be6 {[%emt 0:00:30]} 17. Qd2 {[%emt 0:00:30]} b4 {[%emt 0:00:30]} 18. Bd5 {[%emt 0:00:30]} Na5 {[%emt 0:00:30]} 19. Qc2 {[%emt 0:00:30]} b3 {[%emt 0:00:30]} 20. Qd2 {[%emt 0:00:30]} Bxd5 {[%emt 0:00:30]} 21. exd5 {[%emt 0:00:30]} g6 {[%emt 0:00:30]} 22. Ne4 {[%emt 0:00:30]} Bg7 {[%emt 0:00:30]} 23. Ra3 {[%emt 0:00:30]} h6 {[%emt 0:00:30]} 24. c4 {[%emt 0:00:30]} Rb4 {[%emt 0:00:30]} 25. Qc3 {[%emt 0:00:30]} f5 {[%emt 0:00:30]} 26. Nxc5 {[%emt 0:00:30]} dxc5 {[%emt 0:00:30]} 27. Nxe5 {[%emt 0:00:30]} Re8 {[%emt 0:00:30]} 28. f4 {[%emt 0:00:30]} g5 {[%emt 0:00:30]} 29. g3 {[%emt 0:00:30]} gxf4 {[%emt 0:00:30]} 30. gxf4 {[%emt 0:00:30]} Qh4 {[%emt 0:00:30]} 31. Qd2 {[%emt 0:00:30]} h5 {[%emt 0:00:30]} 32. Re2 {[%emt 0:00:30]} Kh7 {[%emt 0:00:30]} 33. Qe3 {[%emt 0:00:30]} Nb7 {[%emt 0:00:30]} 34. Ra1 {[%emt 0:00:30]} Rb6 {[%emt 0:00:30]} 35. Rg2 {[%emt 0:00:30]} Rf6 {[%emt 0:00:30]} 36. Rg3 {[%emt 0:00:30]} Rff8 {[%emt 0:00:30]} 37. Rh3 {[%emt 0:00:30]} Bh6 {[%emt 0:54:44]} 38. Rf1 {[%emt 1:27:21]} Rxe5 {[%emt 0:05:28]} 39. Qxe5 {[%emt 0:02:14]} Qxh3 {[%emt 0:00:21]} 40. Qe7+ {[%emt 0:01:08]} Kh8 {[%emt 0:00:17]} 41. Rf2 {[%emt 0:01:35]} Rg8+ {[%emt 0:00:56]} 42. Kh1 {[%emt 0:00:35]} Qg4 {[%emt 0:00:26]} 43. Qe1 {[%emt 0:00:35]} Bxf4 {[%emt 0:01:05]} 44. Qf1 {[%emt 0:00:13]} Be3 {[%emt 0:00:24]} 45. Rg2 {[%emt 0:00:33]} Qxg2+ {[%emt 0:00:09]} 46. Qxg2 {[%emt 0:00:07]} Rxg2 {[%emt 0:00:06]} 47. Kxg2 {[%emt 0:00:06]} Bd4 {[%emt 0:00:06]} 48. Kh3 {[%emt 0:00:06]} Bxb2 {[%emt 0:00:17]} 49. Kh4 {[%emt 0:00:17]} Bf6+ {[%emt 0:00:06]} 50. Kg3 {[%emt 0:00:11]} b2 {[%emt 0:00:06]} 51. Kf4 {[%emt 0:00:06]} b1=Q {[%emt 0:00:13]} 52. Kxf5 {[%emt 0:00:07]} Qxd3+ {[%emt 0:00:23]} 53. Kxf6 {[%emt 0:00:26]} Qe3 {[%emt 0:00:19]} 54. d6 {[%emt 0:00:38]} Nxd6 {[%emt 0:00:14]} 55. h4 {[%emt 0:00:01]} Ne8+ {[%emt 0:00:10]} 56. Kf5 {[%emt 0:00:07]} Kg7 {[%emt 0:00:16]} 57. a5 {[%emt 0:00:27]} Nd6# {[%emt 0:00:05]} 0-1

[Event "FIDE WCCC Open-10 2024"]
[Site "Montesilvano"]
[Date "2024.11.22"]
[Round "7.15"]
[White "Chakhalov, Mikael"]
[Black "Anetov, Amirzhan"]
[Result "0-1"]
[Annotator "NA RC"]
[ECO "D20"]
[WhiteElo "1962"]
[BlackElo "1767"]
[PlyCount "84"]
[EventDate "2024.11.18"]
[EventType "swiss"]
[EventCountry "ITA"]
[SourceTitle "playchess.com"]
[Source "ChessBase"]
[SourceQuality "1"]
[TimeControl "5400+30"]

1. d4 {[%emt 0:00:04]} d5 {[%emt 0:00:03]} 2. c4 {[%emt 0:00:05]} dxc4 {[%emt 0:00:05]} 3. e3 {[%emt 0:00:15]} e5 {[%emt 0:00:11]} 4. dxe5 {[%emt 0:00:28]} Qxd1+ {[%emt 0:00:06]} 5. Kxd1 {[%emt 0:00:03]} Nc6 {[%emt 0:00:38]} 6. Bxc4 {[%emt 0:06:13]} Nxe5 {[%emt 0:00:07]} 7. Be2 {[%emt 0:01:39]} Bf5 {[%emt 0:00:37]} 8. Nf3 {[%emt 0:03:53]} O-O-O+ {[%emt 0:02:46]} 9. Nbd2 {[%emt 0:03:03]} Nc6 {[%emt 0:00:46]} 10. a3 {[%emt 0:06:00]} Nf6 $11 {[%emt 0:00:34]} (10... Be7 $15) 11. Ke1 {[%emt 0:01:10]} Bd6 {[%emt 0:05:23]} 12. Nc4 {[%emt 0:04:02]} Rhe8 {[%emt 0:04:10]} 13. b4 {[%emt 0:05:19]} Ng4 {[%emt 0:03:49]} 14. Bb2 {[%emt 0:04:02]} Nge5 {[%emt 0:02:53]} 15. Rd1 {[%emt 0:07:26]} Nxc4 {[%emt 0:05:12]} 16. Bxc4 {[%emt 0:00:02]} f6 {[%emt 0:00:11]} 17. Bb5 {[%emt 0:09:30]} Be4 {[%emt 1:11:29]} 18. Nd4 {[%emt 0:05:52]} Nxd4 {[%emt 0:00:00]} 19. Bxd4 {[%emt 0:01:30]} c6 {[%emt 0:00:00]} 20. Be2 {[%emt 0:00:58]} Kb8 {[%emt 0:00:00]} 21. Bf3 {[%emt 0:02:17]} Bxf3 {[%emt 0:00:00]} 22. gxf3 {[%emt 0:00:03]} Be5 {[%emt 0:00:00]} 23. Bxe5+ {[%emt 0:01:00]} fxe5 {[%emt 0:00:00]} 24. Rg1 {[%emt 0:03:59]} Rxd1+ {[%emt 0:00:00]} 25. Kxd1 {[%emt 0:00:01]} g6 {[%emt 0:00:00]} 26. Ke2 {[%emt 0:00:57]} Re6 {[%emt 0:00:00]} 27. Kd3 {[%emt 0:03:02]} Rf6 {[%emt 0:00:00]} 28. Ke4 {[%emt 0:00:38]} Rf5 {[%emt 0:00:00]} 29. h4 {[%emt 0:01:40]} Kc7 {[%emt 0:00:00]} 30. Rg5 {[%emt 0:04:39]} Rxg5 {[%emt 0:00:00]} 31. hxg5 {[%emt 0:00:02]} Kd6 {[%emt 0:00:00]} 32. f4 {[%emt 0:00:19]} exf4 {[%emt 0:00:00]} 33. Kxf4 {[%emt 0:00:59]} Kd5 {[%emt 0:00:00]} 34. f3 {[%emt 0:04:15]} b6 {[%emt 0:00:00]} 35. Kg3 {[%emt 0:00:19]} Ke5 {[%emt 0:00:00]} 36. e4 {[%emt 0:01:23]} c5 {[%emt 0:00:00]} 37. bxc5 {[%emt 0:00:16]} bxc5 {[%emt 0:00:00]} 38. Kf2 {[%emt 0:00:20]} Kf4 {[%emt 0:00:00]} 39. Ke2 {[%emt 0:00:26]} Kxg5 {[%emt 0:00:00]} 40. Kd3 {[%emt 0:02:10]} h5 {[%emt 0:00:00]} 41. Kc4 {[%emt 0:00:21]} h4 {[%emt 0:00:00]} 42. e5 {[%emt 0:00:33]} h3 {[%emt 0:00:00]} 0-1